{"text_format":"3","workbook":"xlsx","n_sheets":3,"sheets":["Log Jarak Tempuh","Data log","Perhitungan"],"not_rendered":{"charts":1,"defined_names":17},"read":"whole","date_system":"1900"}

{"sheet":"Log Jarak Tempuh","index":0,"n_rows":29,"n_cols":5,"rows_kept":29,"merged":[[0,1,1,4]]}
[null,"LOG JARAK TEMPUH"]
{"$rows_empty":9}
[null,null,"MIL ",null,"TOTAL"]
[null,null,"YANG DAPAT DITAGIH",null,"PENGGANTIAN"]
[]
[]
[]
[]
[null,null,"2012-05-01",null,"2012-05-10"]
[]
[null,null,"PERIODE",null,"PERIODE"]
[null,null,"MULAI",null,"SELESAI"]
[]
[]
[]
[]
[]
[null,null,54,null,{"v":9800,"d":"9,800"}]
[]
[null,null,"PENGGANTIAN",null,"ODOMETER "]
[null,null,"¢/MIL",null,"BAHAN BAKAR SEBELUMNYA"]

{"sheet":"Data log","index":1,"n_rows":19,"n_cols":15,"rows_kept":19,"merged":[[0,1,1,4]]}
[null,"LOG JARAK TEMPUH"]
[{"$nulls":14}," "]
[]
[]
[null,"TANGGAL","AKTIVITAS","ODOM. 1","LOKASI","ODOM. 2","TUJUAN","PENGGANTIAN","GALON","BIAYA","MIL","MPG","¢/MIL","CATATAN"]
[null,"2012-05-01","Perjalanan",{"v":10123,"d":"10,123"},"Chevron - Main St",{"v":10130,"d":"10,130"},null,null,15.56,{"v":64.11,"d":"Rp64.11"},{"$f":"miles","v":7},{"$f":"IF(OR(LEN(data[[#This Row],[ODOM. 2]]),data[[#This Row],[ODOM. 1]]=\"\"),\"\",IFERROR(data[[#This Row],[MIL]]/data[[#This Row],[GALON]],\"\"))","v":""},{"$f":"IF(data[[#This Row],[MPG]]=\"\",\"\",100*data[[#This Row],[BIAYA]]/data[[#This Row],[MIL]])","v":""}]
[null,"2012-05-01","Perjalanan",{"v":10130,"d":"10,130"},"Kantor",{"v":10200,"d":"10,200"},"Cherry Street","Ya",null,"",{"$f":"miles","v":70},{"$f":"IF(OR(LEN(data[[#This Row],[ODOM. 2]]),data[[#This Row],[ODOM. 1]]=\"\"),\"\",IFERROR(data[[#This Row],[MIL]]/data[[#This Row],[GALON]],\"\"))","v":""},{"$f":"IF(data[[#This Row],[MPG]]=\"\",\"\",100*data[[#This Row],[BIAYA]]/data[[#This Row],[MIL]])","v":""}]
[null,"2012-05-01","Perjalanan",{"v":10200,"d":"10,200"},"Smithfields",{"v":10285,"d":"10,285"},"Kantor","Ya",null,"",{"$f":"miles","v":85},{"$f":"IF(OR(LEN(data[[#This Row],[ODOM. 2]]),data[[#This Row],[ODOM. 1]]=\"\"),\"\",IFERROR(data[[#This Row],[MIL]]/data[[#This Row],[GALON]],\"\"))","v":""},{"$f":"IF(data[[#This Row],[MPG]]=\"\",\"\",100*data[[#This Row],[BIAYA]]/data[[#This Row],[MIL]])","v":""}]
[null,"2012-05-02","Perjalanan",{"v":10285,"d":"10,285"},"Kantor",{"v":10450,"d":"10,450"},"Colo Vineyard","Ya",null,"",{"$f":"miles","v":165},{"$f":"IF(OR(LEN(data[[#This Row],[ODOM. 2]]),data[[#This Row],[ODOM. 1]]=\"\"),\"\",IFERROR(data[[#This Row],[MIL]]/data[[#This Row],[GALON]],\"\"))","v":""},{"$f":"IF(data[[#This Row],[MPG]]=\"\",\"\",100*data[[#This Row],[BIAYA]]/data[[#This Row],[MIL]])","v":""}]
[null,"2012-05-02","Bahan Bakar",{"v":10450,"d":"10,450"},"Shell",{"$nulls":3},{"v":11.2,"d":"11.20"},{"v":55.42,"d":"Rp55.42"},{"$f":"miles","v":650},{"$f":"IF(OR(LEN(data[[#This Row],[ODOM. 2]]),data[[#This Row],[ODOM. 1]]=\"\"),\"\",IFERROR(data[[#This Row],[MIL]]/data[[#This Row],[GALON]],\"\"))","v":{"v":58.03571428571429,"d":"58.0"}},{"$f":"IF(data[[#This Row],[MPG]]=\"\",\"\",100*data[[#This Row],[BIAYA]]/data[[#This Row],[MIL]])","v":{"v":8.526153846153846,"d":"8.5"}}]
[null,"2012-05-02","Perjalanan",{"v":10500,"d":"10,500"},"Colo Vineyard",{"v":10518,"d":"10,518"},"Kantor","Ya",null,"",{"$f":"miles","v":18},{"$f":"IF(OR(LEN(data[[#This Row],[ODOM. 2]]),data[[#This Row],[ODOM. 1]]=\"\"),\"\",IFERROR(data[[#This Row],[MIL]]/data[[#This Row],[GALON]],\"\"))","v":""},{"$f":"IF(data[[#This Row],[MPG]]=\"\",\"\",100*data[[#This Row],[BIAYA]]/data[[#This Row],[MIL]])","v":""}]
[null,"2012-05-03","Perjalanan",{"v":10518,"d":"10,518"},"Kantor",{"v":10745,"d":"10,745"},"Kantor","Ya",null,"",{"$f":"miles","v":227},{"$f":"IF(OR(LEN(data[[#This Row],[ODOM. 2]]),data[[#This Row],[ODOM. 1]]=\"\"),\"\",IFERROR(data[[#This Row],[MIL]]/data[[#This Row],[GALON]],\"\"))","v":""},{"$f":"IF(data[[#This Row],[MPG]]=\"\",\"\",100*data[[#This Row],[BIAYA]]/data[[#This Row],[MIL]])","v":""}]
[null,"2012-05-04","Bahan Bakar",{"v":10745,"d":"10,745"},"Chevron - Main St",{"$nulls":3},{"v":16.6,"d":"16.60"},{"v":69.24,"d":"Rp69.24"},{"$f":"miles","v":295},{"$f":"IF(OR(LEN(data[[#This Row],[ODOM. 2]]),data[[#This Row],[ODOM. 1]]=\"\"),\"\",IFERROR(data[[#This Row],[MIL]]/data[[#This Row],[GALON]],\"\"))","v":{"v":17.771084337349397,"d":"17.8"}},{"$f":"IF(data[[#This Row],[MPG]]=\"\",\"\",100*data[[#This Row],[BIAYA]]/data[[#This Row],[MIL]])","v":{"v":23.471186440677965,"d":"23.5"}}]
[null,"2012-05-04","Perjalanan",{"v":10745,"d":"10,745"},"Kantor",{"v":10800,"d":"10,800"},"Porterville","Ya",null,"",{"$f":"miles","v":55},{"$f":"IF(OR(LEN(data[[#This Row],[ODOM. 2]]),data[[#This Row],[ODOM. 1]]=\"\"),\"\",IFERROR(data[[#This Row],[MIL]]/data[[#This Row],[GALON]],\"\"))","v":""},{"$f":"IF(data[[#This Row],[MPG]]=\"\",\"\",100*data[[#This Row],[BIAYA]]/data[[#This Row],[MIL]])","v":""}]
[null,"2012-05-04","Perjalanan",{"v":10800,"d":"10,800"},"Porterville",{"v":10875,"d":"10,875"},"Kantor","Ya",null,"",{"$f":"miles","v":75},{"$f":"IF(OR(LEN(data[[#This Row],[ODOM. 2]]),data[[#This Row],[ODOM. 1]]=\"\"),\"\",IFERROR(data[[#This Row],[MIL]]/data[[#This Row],[GALON]],\"\"))","v":""},{"$f":"IF(data[[#This Row],[MPG]]=\"\",\"\",100*data[[#This Row],[BIAYA]]/data[[#This Row],[MIL]])","v":""}]
[null,"2012-05-07","Perjalanan",{"v":10875,"d":"10,875"},"Kantor",{"v":10921,"d":"10,921"},"Cherry Street","Ya",null,"",{"$f":"miles","v":46},{"$f":"IF(OR(LEN(data[[#This Row],[ODOM. 2]]),data[[#This Row],[ODOM. 1]]=\"\"),\"\",IFERROR(data[[#This Row],[MIL]]/data[[#This Row],[GALON]],\"\"))","v":""},{"$f":"IF(data[[#This Row],[MPG]]=\"\",\"\",100*data[[#This Row],[BIAYA]]/data[[#This Row],[MIL]])","v":""}]
[null,"2012-05-07","Perjalanan",{"v":10921,"d":"10,921"},"Smithfields",{"v":10969,"d":"10,969"},"Kantor","Ya",null,"",{"$f":"miles","v":48},{"$f":"IF(OR(LEN(data[[#This Row],[ODOM. 2]]),data[[#This Row],[ODOM. 1]]=\"\"),\"\",IFERROR(data[[#This Row],[MIL]]/data[[#This Row],[GALON]],\"\"))","v":""},{"$f":"IF(data[[#This Row],[MPG]]=\"\",\"\",100*data[[#This Row],[BIAYA]]/data[[#This Row],[MIL]])","v":""}]
[null,"2012-05-09","Perjalanan",{"v":10969,"d":"10,969"},"Kantor",{"v":11000,"d":"11,000"},"Riverside","Ya",null,"",{"$f":"miles","v":31},{"$f":"IF(OR(LEN(data[[#This Row],[ODOM. 2]]),data[[#This Row],[ODOM. 1]]=\"\"),\"\",IFERROR(data[[#This Row],[MIL]]/data[[#This Row],[GALON]],\"\"))","v":""},{"$f":"IF(data[[#This Row],[MPG]]=\"\",\"\",100*data[[#This Row],[BIAYA]]/data[[#This Row],[MIL]])","v":""}]
[null,"2012-05-09","Perjalanan",{"v":11000,"d":"11,000"},"Riverside",{"v":11100,"d":"11,100"},"Rumah","Tidak",null,"",{"$f":"miles","v":100},{"$f":"IF(OR(LEN(data[[#This Row],[ODOM. 2]]),data[[#This Row],[ODOM. 1]]=\"\"),\"\",IFERROR(data[[#This Row],[MIL]]/data[[#This Row],[GALON]],\"\"))","v":""},{"$f":"IF(data[[#This Row],[MPG]]=\"\",\"\",100*data[[#This Row],[BIAYA]]/data[[#This Row],[MIL]])","v":""}]

{"sheet":"Perhitungan","index":2,"n_rows":69,"n_cols":13,"rows_kept":69,"hidden":true}
["*** Lembar ini untuk tetap tersembunyi ***"]
[]
[]
[]
[]
[{"$nulls":8},{"$f":"OFFSET(I9,,secondAxis=\"biaya bahan bakar\")","v":"¢/MIL"}]
[{"$nulls":12},2]
[{"$nulls":7},"Perjalanan","Bahan Bakar","Bahan Bakar",null,"Second Axis:  ",{"$f":"REPT(\"MPG\",M7=1)&REPT(\"Biaya Bahan Bakar\",M7=2)","v":"Biaya Bahan Bakar"}]
[{"$nulls":7},"Mil Dipakai","MPG","¢/MIL"]
[null,null,"Penggantian Mil:  ",{"$f":"SUMIFS(data[MIL],data[PENGGANTIAN],\"ya\",data[TANGGAL],\">=\"&periodStart,data[TANGGAL],\"<=\"&periodEnd)","v":820},null,1,{"$f":"periodStart","v":"2012-05-01"},{"$f":"SUMIFS(data[MIL],data[TANGGAL],G10,data[AKTIVITAS],$H$8)","v":162},{"$f":"IFERROR(AVERAGEIFS(data[MPG],data[TANGGAL],G10,data[AKTIVITAS],$I$8),NA())","v":{"$error":"#N/A"}},{"$f":"IFERROR(AVERAGEIFS(data[¢/MIL],data[TANGGAL],G10,data[AKTIVITAS],$J$8),NA())","v":{"$error":"#N/A"}}]
[null,null,"Total Penggantian:  ",{"$f":"D10*ReimbursementPerMile/100","v":{"v":442.8,"d":"Rp442.80"}},null,2,{"$f":"G10+1","v":"2012-05-02"},{"$f":"SUMIFS(data[MIL],data[TANGGAL],G11,data[AKTIVITAS],$H$8)","v":183},{"$f":"IFERROR(AVERAGEIFS(data[MPG],data[TANGGAL],G11,data[AKTIVITAS],$I$8),NA())","v":{"v":58.03571428571429,"d":"58.0"}},{"$f":"IFERROR(AVERAGEIFS(data[¢/MIL],data[TANGGAL],G11,data[AKTIVITAS],$J$8),NA())","v":{"v":8.526153846153846,"d":"8.5"}}]
[{"$nulls":5},3,"2012-05-03",{"$f":"SUMIFS(data[MIL],data[TANGGAL],G12,data[AKTIVITAS],$H$8)","v":227},{"$f":"IFERROR(AVERAGEIFS(data[MPG],data[TANGGAL],G12,data[AKTIVITAS],$I$8),NA())","v":{"$error":"#N/A"}},{"$f":"IFERROR(AVERAGEIFS(data[¢/MIL],data[TANGGAL],G12,data[AKTIVITAS],$J$8),NA())","v":{"$error":"#N/A"}}]
[{"$nulls":5},4,"2012-05-04",{"$f":"SUMIFS(data[MIL],data[TANGGAL],G13,data[AKTIVITAS],$H$8)","v":130},{"$f":"IFERROR(AVERAGEIFS(data[MPG],data[TANGGAL],G13,data[AKTIVITAS],$I$8),NA())","v":{"v":17.771084337349397,"d":"17.8"}},{"$f":"IFERROR(AVERAGEIFS(data[¢/MIL],data[TANGGAL],G13,data[AKTIVITAS],$J$8),NA())","v":{"v":23.471186440677965,"d":"23.5"}}]
[{"$nulls":5},5,"2012-05-05",{"$f":"SUMIFS(data[MIL],data[TANGGAL],G14,data[AKTIVITAS],$H$8)","v":0},{"$f":"IFERROR(AVERAGEIFS(data[MPG],data[TANGGAL],G14,data[AKTIVITAS],$I$8),NA())","v":{"$error":"#N/A"}},{"$f":"IFERROR(AVERAGEIFS(data[¢/MIL],data[TANGGAL],G14,data[AKTIVITAS],$J$8),NA())","v":{"$error":"#N/A"}}]
[{"$nulls":5},6,"2012-05-06",{"$f":"SUMIFS(data[MIL],data[TANGGAL],G15,data[AKTIVITAS],$H$8)","v":0},{"$f":"IFERROR(AVERAGEIFS(data[MPG],data[TANGGAL],G15,data[AKTIVITAS],$I$8),NA())","v":{"$error":"#N/A"}},{"$f":"IFERROR(AVERAGEIFS(data[¢/MIL],data[TANGGAL],G15,data[AKTIVITAS],$J$8),NA())","v":{"$error":"#N/A"}}]
[{"$nulls":5},7,"2012-05-07",{"$f":"SUMIFS(data[MIL],data[TANGGAL],G16,data[AKTIVITAS],$H$8)","v":94},{"$f":"IFERROR(AVERAGEIFS(data[MPG],data[TANGGAL],G16,data[AKTIVITAS],$I$8),NA())","v":{"$error":"#N/A"}},{"$f":"IFERROR(AVERAGEIFS(data[¢/MIL],data[TANGGAL],G16,data[AKTIVITAS],$J$8),NA())","v":{"$error":"#N/A"}}]
[{"$nulls":5},8,"2012-05-08",{"$f":"SUMIFS(data[MIL],data[TANGGAL],G17,data[AKTIVITAS],$H$8)","v":0},{"$f":"IFERROR(AVERAGEIFS(data[MPG],data[TANGGAL],G17,data[AKTIVITAS],$I$8),NA())","v":{"$error":"#N/A"}},{"$f":"IFERROR(AVERAGEIFS(data[¢/MIL],data[TANGGAL],G17,data[AKTIVITAS],$J$8),NA())","v":{"$error":"#N/A"}}]
[{"$nulls":5},9,"2012-05-09",{"$f":"SUMIFS(data[MIL],data[TANGGAL],G18,data[AKTIVITAS],$H$8)","v":131},{"$f":"IFERROR(AVERAGEIFS(data[MPG],data[TANGGAL],G18,data[AKTIVITAS],$I$8),NA())","v":{"$error":"#N/A"}},{"$f":"IFERROR(AVERAGEIFS(data[¢/MIL],data[TANGGAL],G18,data[AKTIVITAS],$J$8),NA())","v":{"$error":"#N/A"}}]
[{"$nulls":5},10,"2012-05-10",{"$f":"SUMIFS(data[MIL],data[TANGGAL],G19,data[AKTIVITAS],$H$8)","v":0},{"$f":"IFERROR(AVERAGEIFS(data[MPG],data[TANGGAL],G19,data[AKTIVITAS],$I$8),NA())","v":{"$error":"#N/A"}},{"$f":"IFERROR(AVERAGEIFS(data[¢/MIL],data[TANGGAL],G19,data[AKTIVITAS],$J$8),NA())","v":{"$error":"#N/A"}}]
[{"$nulls":5},11,"2012-05-11",{"$f":"SUMIFS(data[MIL],data[TANGGAL],G20,data[AKTIVITAS],$H$8)","v":0},{"$f":"IFERROR(AVERAGEIFS(data[MPG],data[TANGGAL],G20,data[AKTIVITAS],$I$8),NA())","v":{"$error":"#N/A"}},{"$f":"IFERROR(AVERAGEIFS(data[¢/MIL],data[TANGGAL],G20,data[AKTIVITAS],$J$8),NA())","v":{"$error":"#N/A"}}]
[{"$nulls":5},12,"2012-05-12",{"$f":"SUMIFS(data[MIL],data[TANGGAL],G21,data[AKTIVITAS],$H$8)","v":0},{"$f":"IFERROR(AVERAGEIFS(data[MPG],data[TANGGAL],G21,data[AKTIVITAS],$I$8),NA())","v":{"$error":"#N/A"}},{"$f":"IFERROR(AVERAGEIFS(data[¢/MIL],data[TANGGAL],G21,data[AKTIVITAS],$J$8),NA())","v":{"$error":"#N/A"}}]
[{"$nulls":5},13,"2012-05-13",{"$f":"SUMIFS(data[MIL],data[TANGGAL],G22,data[AKTIVITAS],$H$8)","v":0},{"$f":"IFERROR(AVERAGEIFS(data[MPG],data[TANGGAL],G22,data[AKTIVITAS],$I$8),NA())","v":{"$error":"#N/A"}},{"$f":"IFERROR(AVERAGEIFS(data[¢/MIL],data[TANGGAL],G22,data[AKTIVITAS],$J$8),NA())","v":{"$error":"#N/A"}}]
[{"$nulls":5},14,"2012-05-14",{"$f":"SUMIFS(data[MIL],data[TANGGAL],G23,data[AKTIVITAS],$H$8)","v":0},{"$f":"IFERROR(AVERAGEIFS(data[MPG],data[TANGGAL],G23,data[AKTIVITAS],$I$8),NA())","v":{"$error":"#N/A"}},{"$f":"IFERROR(AVERAGEIFS(data[¢/MIL],data[TANGGAL],G23,data[AKTIVITAS],$J$8),NA())","v":{"$error":"#N/A"}}]
[{"$nulls":5},15,"2012-05-15",{"$f":"SUMIFS(data[MIL],data[TANGGAL],G24,data[AKTIVITAS],$H$8)","v":0},{"$f":"IFERROR(AVERAGEIFS(data[MPG],data[TANGGAL],G24,data[AKTIVITAS],$I$8),NA())","v":{"$error":"#N/A"}},{"$f":"IFERROR(AVERAGEIFS(data[¢/MIL],data[TANGGAL],G24,data[AKTIVITAS],$J$8),NA())","v":{"$error":"#N/A"}}]
[{"$nulls":5},16,"2012-05-16",{"$f":"SUMIFS(data[MIL],data[TANGGAL],G25,data[AKTIVITAS],$H$8)","v":0},{"$f":"IFERROR(AVERAGEIFS(data[MPG],data[TANGGAL],G25,data[AKTIVITAS],$I$8),NA())","v":{"$error":"#N/A"}},{"$f":"IFERROR(AVERAGEIFS(data[¢/MIL],data[TANGGAL],G25,data[AKTIVITAS],$J$8),NA())","v":{"$error":"#N/A"}}]
[{"$nulls":5},17,"2012-05-17",{"$f":"SUMIFS(data[MIL],data[TANGGAL],G26,data[AKTIVITAS],$H$8)","v":0},{"$f":"IFERROR(AVERAGEIFS(data[MPG],data[TANGGAL],G26,data[AKTIVITAS],$I$8),NA())","v":{"$error":"#N/A"}},{"$f":"IFERROR(AVERAGEIFS(data[¢/MIL],data[TANGGAL],G26,data[AKTIVITAS],$J$8),NA())","v":{"$error":"#N/A"}}]
[{"$nulls":5},18,"2012-05-18",{"$f":"SUMIFS(data[MIL],data[TANGGAL],G27,data[AKTIVITAS],$H$8)","v":0},{"$f":"IFERROR(AVERAGEIFS(data[MPG],data[TANGGAL],G27,data[AKTIVITAS],$I$8),NA())","v":{"$error":"#N/A"}},{"$f":"IFERROR(AVERAGEIFS(data[¢/MIL],data[TANGGAL],G27,data[AKTIVITAS],$J$8),NA())","v":{"$error":"#N/A"}}]
[{"$nulls":5},19,"2012-05-19",{"$f":"SUMIFS(data[MIL],data[TANGGAL],G28,data[AKTIVITAS],$H$8)","v":0},{"$f":"IFERROR(AVERAGEIFS(data[MPG],data[TANGGAL],G28,data[AKTIVITAS],$I$8),NA())","v":{"$error":"#N/A"}},{"$f":"IFERROR(AVERAGEIFS(data[¢/MIL],data[TANGGAL],G28,data[AKTIVITAS],$J$8),NA())","v":{"$error":"#N/A"}}]
[{"$nulls":5},20,"2012-05-20",{"$f":"SUMIFS(data[MIL],data[TANGGAL],G29,data[AKTIVITAS],$H$8)","v":0},{"$f":"IFERROR(AVERAGEIFS(data[MPG],data[TANGGAL],G29,data[AKTIVITAS],$I$8),NA())","v":{"$error":"#N/A"}},{"$f":"IFERROR(AVERAGEIFS(data[¢/MIL],data[TANGGAL],G29,data[AKTIVITAS],$J$8),NA())","v":{"$error":"#N/A"}}]
[{"$nulls":5},21,"2012-05-21",{"$f":"SUMIFS(data[MIL],data[TANGGAL],G30,data[AKTIVITAS],$H$8)","v":0},{"$f":"IFERROR(AVERAGEIFS(data[MPG],data[TANGGAL],G30,data[AKTIVITAS],$I$8),NA())","v":{"$error":"#N/A"}},{"$f":"IFERROR(AVERAGEIFS(data[¢/MIL],data[TANGGAL],G30,data[AKTIVITAS],$J$8),NA())","v":{"$error":"#N/A"}}]
[{"$nulls":5},22,"2012-05-22",{"$f":"SUMIFS(data[MIL],data[TANGGAL],G31,data[AKTIVITAS],$H$8)","v":0},{"$f":"IFERROR(AVERAGEIFS(data[MPG],data[TANGGAL],G31,data[AKTIVITAS],$I$8),NA())","v":{"$error":"#N/A"}},{"$f":"IFERROR(AVERAGEIFS(data[¢/MIL],data[TANGGAL],G31,data[AKTIVITAS],$J$8),NA())","v":{"$error":"#N/A"}}]
[{"$nulls":5},23,"2012-05-23",{"$f":"SUMIFS(data[MIL],data[TANGGAL],G32,data[AKTIVITAS],$H$8)","v":0},{"$f":"IFERROR(AVERAGEIFS(data[MPG],data[TANGGAL],G32,data[AKTIVITAS],$I$8),NA())","v":{"$error":"#N/A"}},{"$f":"IFERROR(AVERAGEIFS(data[¢/MIL],data[TANGGAL],G32,data[AKTIVITAS],$J$8),NA())","v":{"$error":"#N/A"}}]
[{"$nulls":5},24,"2012-05-24",{"$f":"SUMIFS(data[MIL],data[TANGGAL],G33,data[AKTIVITAS],$H$8)","v":0},{"$f":"IFERROR(AVERAGEIFS(data[MPG],data[TANGGAL],G33,data[AKTIVITAS],$I$8),NA())","v":{"$error":"#N/A"}},{"$f":"IFERROR(AVERAGEIFS(data[¢/MIL],data[TANGGAL],G33,data[AKTIVITAS],$J$8),NA())","v":{"$error":"#N/A"}}]
[{"$nulls":5},25,"2012-05-25",{"$f":"SUMIFS(data[MIL],data[TANGGAL],G34,data[AKTIVITAS],$H$8)","v":0},{"$f":"IFERROR(AVERAGEIFS(data[MPG],data[TANGGAL],G34,data[AKTIVITAS],$I$8),NA())","v":{"$error":"#N/A"}},{"$f":"IFERROR(AVERAGEIFS(data[¢/MIL],data[TANGGAL],G34,data[AKTIVITAS],$J$8),NA())","v":{"$error":"#N/A"}}]
[{"$nulls":5},26,"2012-05-26",{"$f":"SUMIFS(data[MIL],data[TANGGAL],G35,data[AKTIVITAS],$H$8)","v":0},{"$f":"IFERROR(AVERAGEIFS(data[MPG],data[TANGGAL],G35,data[AKTIVITAS],$I$8),NA())","v":{"$error":"#N/A"}},{"$f":"IFERROR(AVERAGEIFS(data[¢/MIL],data[TANGGAL],G35,data[AKTIVITAS],$J$8),NA())","v":{"$error":"#N/A"}}]
[{"$nulls":5},27,"2012-05-27",{"$f":"SUMIFS(data[MIL],data[TANGGAL],G36,data[AKTIVITAS],$H$8)","v":0},{"$f":"IFERROR(AVERAGEIFS(data[MPG],data[TANGGAL],G36,data[AKTIVITAS],$I$8),NA())","v":{"$error":"#N/A"}},{"$f":"IFERROR(AVERAGEIFS(data[¢/MIL],data[TANGGAL],G36,data[AKTIVITAS],$J$8),NA())","v":{"$error":"#N/A"}}]
[{"$nulls":5},28,"2012-05-28",{"$f":"SUMIFS(data[MIL],data[TANGGAL],G37,data[AKTIVITAS],$H$8)","v":0},{"$f":"IFERROR(AVERAGEIFS(data[MPG],data[TANGGAL],G37,data[AKTIVITAS],$I$8),NA())","v":{"$error":"#N/A"}},{"$f":"IFERROR(AVERAGEIFS(data[¢/MIL],data[TANGGAL],G37,data[AKTIVITAS],$J$8),NA())","v":{"$error":"#N/A"}}]
[{"$nulls":5},29,"2012-05-29",{"$f":"SUMIFS(data[MIL],data[TANGGAL],G38,data[AKTIVITAS],$H$8)","v":0},{"$f":"IFERROR(AVERAGEIFS(data[MPG],data[TANGGAL],G38,data[AKTIVITAS],$I$8),NA())","v":{"$error":"#N/A"}},{"$f":"IFERROR(AVERAGEIFS(data[¢/MIL],data[TANGGAL],G38,data[AKTIVITAS],$J$8),NA())","v":{"$error":"#N/A"}}]
[{"$nulls":5},30,"2012-05-30",{"$f":"SUMIFS(data[MIL],data[TANGGAL],G39,data[AKTIVITAS],$H$8)","v":0},{"$f":"IFERROR(AVERAGEIFS(data[MPG],data[TANGGAL],G39,data[AKTIVITAS],$I$8),NA())","v":{"$error":"#N/A"}},{"$f":"IFERROR(AVERAGEIFS(data[¢/MIL],data[TANGGAL],G39,data[AKTIVITAS],$J$8),NA())","v":{"$error":"#N/A"}}]
[{"$nulls":5},31,"2012-05-31",{"$f":"SUMIFS(data[MIL],data[TANGGAL],G40,data[AKTIVITAS],$H$8)","v":0},{"$f":"IFERROR(AVERAGEIFS(data[MPG],data[TANGGAL],G40,data[AKTIVITAS],$I$8),NA())","v":{"$error":"#N/A"}},{"$f":"IFERROR(AVERAGEIFS(data[¢/MIL],data[TANGGAL],G40,data[AKTIVITAS],$J$8),NA())","v":{"$error":"#N/A"}}]
[{"$nulls":5},32,"2012-06-01",{"$f":"SUMIFS(data[MIL],data[TANGGAL],G41,data[AKTIVITAS],$H$8)","v":0},{"$f":"IFERROR(AVERAGEIFS(data[MPG],data[TANGGAL],G41,data[AKTIVITAS],$I$8),NA())","v":{"$error":"#N/A"}},{"$f":"IFERROR(AVERAGEIFS(data[¢/MIL],data[TANGGAL],G41,data[AKTIVITAS],$J$8),NA())","v":{"$error":"#N/A"}}]
[{"$nulls":5},33,"2012-06-02",{"$f":"SUMIFS(data[MIL],data[TANGGAL],G42,data[AKTIVITAS],$H$8)","v":0},{"$f":"IFERROR(AVERAGEIFS(data[MPG],data[TANGGAL],G42,data[AKTIVITAS],$I$8),NA())","v":{"$error":"#N/A"}},{"$f":"IFERROR(AVERAGEIFS(data[¢/MIL],data[TANGGAL],G42,data[AKTIVITAS],$J$8),NA())","v":{"$error":"#N/A"}}]
[{"$nulls":5},34,{"$f":"G42+1","v":"2012-06-03"},{"$f":"SUMIFS(data[MIL],data[TANGGAL],G43,data[AKTIVITAS],$H$8)","v":0},{"$f":"IFERROR(AVERAGEIFS(data[MPG],data[TANGGAL],G43,data[AKTIVITAS],$I$8),NA())","v":{"$error":"#N/A"}},{"$f":"IFERROR(AVERAGEIFS(data[¢/MIL],data[TANGGAL],G43,data[AKTIVITAS],$J$8),NA())","v":{"$error":"#N/A"}}]
[{"$nulls":5},35,"2012-06-04",{"$f":"SUMIFS(data[MIL],data[TANGGAL],G44,data[AKTIVITAS],$H$8)","v":0},{"$f":"IFERROR(AVERAGEIFS(data[MPG],data[TANGGAL],G44,data[AKTIVITAS],$I$8),NA())","v":{"$error":"#N/A"}},{"$f":"IFERROR(AVERAGEIFS(data[¢/MIL],data[TANGGAL],G44,data[AKTIVITAS],$J$8),NA())","v":{"$error":"#N/A"}}]
[{"$nulls":5},36,"2012-06-05",{"$f":"SUMIFS(data[MIL],data[TANGGAL],G45,data[AKTIVITAS],$H$8)","v":0},{"$f":"IFERROR(AVERAGEIFS(data[MPG],data[TANGGAL],G45,data[AKTIVITAS],$I$8),NA())","v":{"$error":"#N/A"}},{"$f":"IFERROR(AVERAGEIFS(data[¢/MIL],data[TANGGAL],G45,data[AKTIVITAS],$J$8),NA())","v":{"$error":"#N/A"}}]
[{"$nulls":5},37,"2012-06-06",{"$f":"SUMIFS(data[MIL],data[TANGGAL],G46,data[AKTIVITAS],$H$8)","v":0},{"$f":"IFERROR(AVERAGEIFS(data[MPG],data[TANGGAL],G46,data[AKTIVITAS],$I$8),NA())","v":{"$error":"#N/A"}},{"$f":"IFERROR(AVERAGEIFS(data[¢/MIL],data[TANGGAL],G46,data[AKTIVITAS],$J$8),NA())","v":{"$error":"#N/A"}}]
[{"$nulls":5},38,"2012-06-07",{"$f":"SUMIFS(data[MIL],data[TANGGAL],G47,data[AKTIVITAS],$H$8)","v":0},{"$f":"IFERROR(AVERAGEIFS(data[MPG],data[TANGGAL],G47,data[AKTIVITAS],$I$8),NA())","v":{"$error":"#N/A"}},{"$f":"IFERROR(AVERAGEIFS(data[¢/MIL],data[TANGGAL],G47,data[AKTIVITAS],$J$8),NA())","v":{"$error":"#N/A"}}]
[{"$nulls":5},39,"2012-06-08",{"$f":"SUMIFS(data[MIL],data[TANGGAL],G48,data[AKTIVITAS],$H$8)","v":0},{"$f":"IFERROR(AVERAGEIFS(data[MPG],data[TANGGAL],G48,data[AKTIVITAS],$I$8),NA())","v":{"$error":"#N/A"}},{"$f":"IFERROR(AVERAGEIFS(data[¢/MIL],data[TANGGAL],G48,data[AKTIVITAS],$J$8),NA())","v":{"$error":"#N/A"}}]
[{"$nulls":5},40,"2012-06-09",{"$f":"SUMIFS(data[MIL],data[TANGGAL],G49,data[AKTIVITAS],$H$8)","v":0},{"$f":"IFERROR(AVERAGEIFS(data[MPG],data[TANGGAL],G49,data[AKTIVITAS],$I$8),NA())","v":{"$error":"#N/A"}},{"$f":"IFERROR(AVERAGEIFS(data[¢/MIL],data[TANGGAL],G49,data[AKTIVITAS],$J$8),NA())","v":{"$error":"#N/A"}}]
[{"$nulls":5},41,"2012-06-10",{"$f":"SUMIFS(data[MIL],data[TANGGAL],G50,data[AKTIVITAS],$H$8)","v":0},{"$f":"IFERROR(AVERAGEIFS(data[MPG],data[TANGGAL],G50,data[AKTIVITAS],$I$8),NA())","v":{"$error":"#N/A"}},{"$f":"IFERROR(AVERAGEIFS(data[¢/MIL],data[TANGGAL],G50,data[AKTIVITAS],$J$8),NA())","v":{"$error":"#N/A"}}]
[{"$nulls":5},42,"2012-06-11",{"$f":"SUMIFS(data[MIL],data[TANGGAL],G51,data[AKTIVITAS],$H$8)","v":0},{"$f":"IFERROR(AVERAGEIFS(data[MPG],data[TANGGAL],G51,data[AKTIVITAS],$I$8),NA())","v":{"$error":"#N/A"}},{"$f":"IFERROR(AVERAGEIFS(data[¢/MIL],data[TANGGAL],G51,data[AKTIVITAS],$J$8),NA())","v":{"$error":"#N/A"}}]
[{"$nulls":5},43,"2012-06-12",{"$f":"SUMIFS(data[MIL],data[TANGGAL],G52,data[AKTIVITAS],$H$8)","v":0},{"$f":"IFERROR(AVERAGEIFS(data[MPG],data[TANGGAL],G52,data[AKTIVITAS],$I$8),NA())","v":{"$error":"#N/A"}},{"$f":"IFERROR(AVERAGEIFS(data[¢/MIL],data[TANGGAL],G52,data[AKTIVITAS],$J$8),NA())","v":{"$error":"#N/A"}}]
[{"$nulls":5},44,"2012-06-13",{"$f":"SUMIFS(data[MIL],data[TANGGAL],G53,data[AKTIVITAS],$H$8)","v":0},{"$f":"IFERROR(AVERAGEIFS(data[MPG],data[TANGGAL],G53,data[AKTIVITAS],$I$8),NA())","v":{"$error":"#N/A"}},{"$f":"IFERROR(AVERAGEIFS(data[¢/MIL],data[TANGGAL],G53,data[AKTIVITAS],$J$8),NA())","v":{"$error":"#N/A"}}]
[{"$nulls":5},45,"2012-06-14",{"$f":"SUMIFS(data[MIL],data[TANGGAL],G54,data[AKTIVITAS],$H$8)","v":0},{"$f":"IFERROR(AVERAGEIFS(data[MPG],data[TANGGAL],G54,data[AKTIVITAS],$I$8),NA())","v":{"$error":"#N/A"}},{"$f":"IFERROR(AVERAGEIFS(data[¢/MIL],data[TANGGAL],G54,data[AKTIVITAS],$J$8),NA())","v":{"$error":"#N/A"}}]
[{"$nulls":5},46,"2012-06-15",{"$f":"SUMIFS(data[MIL],data[TANGGAL],G55,data[AKTIVITAS],$H$8)","v":0},{"$f":"IFERROR(AVERAGEIFS(data[MPG],data[TANGGAL],G55,data[AKTIVITAS],$I$8),NA())","v":{"$error":"#N/A"}},{"$f":"IFERROR(AVERAGEIFS(data[¢/MIL],data[TANGGAL],G55,data[AKTIVITAS],$J$8),NA())","v":{"$error":"#N/A"}}]
[{"$nulls":5},47,"2012-06-16",{"$f":"SUMIFS(data[MIL],data[TANGGAL],G56,data[AKTIVITAS],$H$8)","v":0},{"$f":"IFERROR(AVERAGEIFS(data[MPG],data[TANGGAL],G56,data[AKTIVITAS],$I$8),NA())","v":{"$error":"#N/A"}},{"$f":"IFERROR(AVERAGEIFS(data[¢/MIL],data[TANGGAL],G56,data[AKTIVITAS],$J$8),NA())","v":{"$error":"#N/A"}}]
[{"$nulls":5},48,"2012-06-17",{"$f":"SUMIFS(data[MIL],data[TANGGAL],G57,data[AKTIVITAS],$H$8)","v":0},{"$f":"IFERROR(AVERAGEIFS(data[MPG],data[TANGGAL],G57,data[AKTIVITAS],$I$8),NA())","v":{"$error":"#N/A"}},{"$f":"IFERROR(AVERAGEIFS(data[¢/MIL],data[TANGGAL],G57,data[AKTIVITAS],$J$8),NA())","v":{"$error":"#N/A"}}]
[{"$nulls":5},49,"2012-06-18",{"$f":"SUMIFS(data[MIL],data[TANGGAL],G58,data[AKTIVITAS],$H$8)","v":0},{"$f":"IFERROR(AVERAGEIFS(data[MPG],data[TANGGAL],G58,data[AKTIVITAS],$I$8),NA())","v":{"$error":"#N/A"}},{"$f":"IFERROR(AVERAGEIFS(data[¢/MIL],data[TANGGAL],G58,data[AKTIVITAS],$J$8),NA())","v":{"$error":"#N/A"}}]
[{"$nulls":5},50,"2012-06-19",{"$f":"SUMIFS(data[MIL],data[TANGGAL],G59,data[AKTIVITAS],$H$8)","v":0},{"$f":"IFERROR(AVERAGEIFS(data[MPG],data[TANGGAL],G59,data[AKTIVITAS],$I$8),NA())","v":{"$error":"#N/A"}},{"$f":"IFERROR(AVERAGEIFS(data[¢/MIL],data[TANGGAL],G59,data[AKTIVITAS],$J$8),NA())","v":{"$error":"#N/A"}}]
[{"$nulls":5},51,"2012-06-20",{"$f":"SUMIFS(data[MIL],data[TANGGAL],G60,data[AKTIVITAS],$H$8)","v":0},{"$f":"IFERROR(AVERAGEIFS(data[MPG],data[TANGGAL],G60,data[AKTIVITAS],$I$8),NA())","v":{"$error":"#N/A"}},{"$f":"IFERROR(AVERAGEIFS(data[¢/MIL],data[TANGGAL],G60,data[AKTIVITAS],$J$8),NA())","v":{"$error":"#N/A"}}]
[{"$nulls":5},52,"2012-06-21",{"$f":"SUMIFS(data[MIL],data[TANGGAL],G61,data[AKTIVITAS],$H$8)","v":0},{"$f":"IFERROR(AVERAGEIFS(data[MPG],data[TANGGAL],G61,data[AKTIVITAS],$I$8),NA())","v":{"$error":"#N/A"}},{"$f":"IFERROR(AVERAGEIFS(data[¢/MIL],data[TANGGAL],G61,data[AKTIVITAS],$J$8),NA())","v":{"$error":"#N/A"}}]
[{"$nulls":5},53,"2012-06-22",{"$f":"SUMIFS(data[MIL],data[TANGGAL],G62,data[AKTIVITAS],$H$8)","v":0},{"$f":"IFERROR(AVERAGEIFS(data[MPG],data[TANGGAL],G62,data[AKTIVITAS],$I$8),NA())","v":{"$error":"#N/A"}},{"$f":"IFERROR(AVERAGEIFS(data[¢/MIL],data[TANGGAL],G62,data[AKTIVITAS],$J$8),NA())","v":{"$error":"#N/A"}}]
[{"$nulls":5},54,"2012-06-23",{"$f":"SUMIFS(data[MIL],data[TANGGAL],G63,data[AKTIVITAS],$H$8)","v":0},{"$f":"IFERROR(AVERAGEIFS(data[MPG],data[TANGGAL],G63,data[AKTIVITAS],$I$8),NA())","v":{"$error":"#N/A"}},{"$f":"IFERROR(AVERAGEIFS(data[¢/MIL],data[TANGGAL],G63,data[AKTIVITAS],$J$8),NA())","v":{"$error":"#N/A"}}]
[{"$nulls":5},55,"2012-06-24",{"$f":"SUMIFS(data[MIL],data[TANGGAL],G64,data[AKTIVITAS],$H$8)","v":0},{"$f":"IFERROR(AVERAGEIFS(data[MPG],data[TANGGAL],G64,data[AKTIVITAS],$I$8),NA())","v":{"$error":"#N/A"}},{"$f":"IFERROR(AVERAGEIFS(data[¢/MIL],data[TANGGAL],G64,data[AKTIVITAS],$J$8),NA())","v":{"$error":"#N/A"}}]
[{"$nulls":5},56,"2012-06-25",{"$f":"SUMIFS(data[MIL],data[TANGGAL],G65,data[AKTIVITAS],$H$8)","v":0},{"$f":"IFERROR(AVERAGEIFS(data[MPG],data[TANGGAL],G65,data[AKTIVITAS],$I$8),NA())","v":{"$error":"#N/A"}},{"$f":"IFERROR(AVERAGEIFS(data[¢/MIL],data[TANGGAL],G65,data[AKTIVITAS],$J$8),NA())","v":{"$error":"#N/A"}}]
[{"$nulls":5},57,"2012-06-26",{"$f":"SUMIFS(data[MIL],data[TANGGAL],G66,data[AKTIVITAS],$H$8)","v":0},{"$f":"IFERROR(AVERAGEIFS(data[MPG],data[TANGGAL],G66,data[AKTIVITAS],$I$8),NA())","v":{"$error":"#N/A"}},{"$f":"IFERROR(AVERAGEIFS(data[¢/MIL],data[TANGGAL],G66,data[AKTIVITAS],$J$8),NA())","v":{"$error":"#N/A"}}]
[{"$nulls":5},58,"2012-06-27",{"$f":"SUMIFS(data[MIL],data[TANGGAL],G67,data[AKTIVITAS],$H$8)","v":0},{"$f":"IFERROR(AVERAGEIFS(data[MPG],data[TANGGAL],G67,data[AKTIVITAS],$I$8),NA())","v":{"$error":"#N/A"}},{"$f":"IFERROR(AVERAGEIFS(data[¢/MIL],data[TANGGAL],G67,data[AKTIVITAS],$J$8),NA())","v":{"$error":"#N/A"}}]
[{"$nulls":5},59,"2012-06-28",{"$f":"SUMIFS(data[MIL],data[TANGGAL],G68,data[AKTIVITAS],$H$8)","v":0},{"$f":"IFERROR(AVERAGEIFS(data[MPG],data[TANGGAL],G68,data[AKTIVITAS],$I$8),NA())","v":{"$error":"#N/A"}},{"$f":"IFERROR(AVERAGEIFS(data[¢/MIL],data[TANGGAL],G68,data[AKTIVITAS],$J$8),NA())","v":{"$error":"#N/A"}}]
[{"$nulls":5},60,"2012-06-29",{"$f":"SUMIFS(data[MIL],data[TANGGAL],G69,data[AKTIVITAS],$H$8)","v":0},{"$f":"IFERROR(AVERAGEIFS(data[MPG],data[TANGGAL],G69,data[AKTIVITAS],$I$8),NA())","v":{"$error":"#N/A"}},{"$f":"IFERROR(AVERAGEIFS(data[¢/MIL],data[TANGGAL],G69,data[AKTIVITAS],$J$8),NA())","v":{"$error":"#N/A"}}]